bitfinex/quotes_SOLUSD_20240607
["timestamp","ask_amount","ask_price","bid_price","bid_amount"]
[1717783260768,120.0,163.03,163.02,3.0758576]
[1717783260936,126.54269011,163.03,163.02,0.8062576]
[1717783261140,126.54269011,163.03,162.84,4.5442]
[1717783261141,64.4419,162.89,162.88,2.2716]
[1717783261367,120.0,162.94,162.93,2.2709]
[1717783261555,130.0,162.94,162.93,2.2709]
[1717783261756,7.32945276,162.97,162.95,2.2705]
[1717783262336,5.15853997,162.96,162.86,4.5435]
[1717783262535,5.15853997,162.96,162.72,30.58535241]
[1717783262536,3.6161668,163.01,162.85,9.0877]
[1717783262840,36.05,163.03,162.88,4.543]
[1717783263035,120.0,162.87,162.86,25.48]
[1717783263241,120.0,162.87,162.86,4.34372851]
[1717783263454,1.12327991,162.92,162.86,2.07192851]
[1717783263655,1.12327991,162.92,162.77,9.0923]
[1717783263965,1.12327991,162.92,162.8,25.48]
[1717783264157,1.12327991,162.92,162.55,2.07729713]
[1717783264158,15.8922,162.91,162.55,2.07729713]
[1717783264575,4.82489447,162.9,162.31,30.56666472]
[1717783264742,30.0,162.86,162.64,4.5498]
[1717783264939,30.0,162.86,162.41,30.44385827]
[1717783264940,120.0,162.83,162.39,10.0]
[1717783265171,120.0,162.7,162.68,2.2743]
[1717783265349,5.84940559,162.71,162.36,30.97149195]
[1717783265561,15.5986,162.7,162.5,6.8306]
[1717783265765,8.30524808,162.7,162.42,6.8341]
[1717783265959,5.25484532,162.7,162.31,30.56666472]
[1717783266158,36.05,162.76,162.5,2.2768]
[1717783266375,36.05,162.76,162.39,24.608431]
[1717783266376,61.53,162.74,162.42,2.2779]
[1717783266670,36.05,162.72,162.36,0.8564002]
[1717783266980,36.05,162.72,162.4,2.2783]
[1717783266981,2.2756,162.6,162.4,2.2783]
[1717783267185,120.0,162.54,162.32,10.0]
[1717783267386,36.05,162.51,162.22,4.5616]
[1717783267597,120.0,162.45,162.35,25.48]
[1717783267754,120.0,162.5,162.26,4.5605]
[1717783268076,36.05,162.49,162.24,11.4023]
[1717783268264,36.05,162.49,162.28,25.48]
[1717783268464,15.7409,162.48,162.31,2.2795]
[1717783268803,15.7409,162.48,162.09,30.92410273]
[1717783268804,120.0,162.36,162.16,4.5631]
[1717783268951,120.0,162.36,162.16,30.0431]
[1717783269158,15.3972,162.29,162.14,10.0]
[1717783269375,8.70966098,162.35,162.14,25.48]
[1717783269578,8.70966098,162.38,162.31,2.2794]
[1717783269815,15.3972,162.25,162.05,2.2831]
[1717783270083,15.5855,162.23,162.04,3.70731018]
[1717783270385,30.0,162.22,162.04,3.70731018]
[1717783270559,15.5855,162.21,162.04,3.70731018]
[1717783270755,30.0,162.22,162.04,1.6254556]
[1717783270756,15.5855,162.2,162.04,1.6254556]
[1717783271060,15.8922,162.19,162.04,1.6254556]
[1717783271266,30.0,162.22,161.87,4.5713]
[1717783271267,120.0,162.01,161.87,4.5713]
[1717783271568,25.75,162.09,162.0,15.9869]
[1717783271754,25.75,162.09,161.71,1.6254556]
[1717783271755,120.0,161.85,161.84,0.19465798]
[1717783271955,120.0,161.77,161.76,9.1493]
[1717783272157,15.6458,161.99,161.71,1.6254556]
[1717783272362,15.6458,161.7,161.63,0.3370297]
[1717783272662,25.75,161.92,161.7,0.40443564]
[1717783272850,25.75,161.98,161.7,0.40443564]
[1717783273057,3.564e-05,161.7,161.69,2.2883]
[1717783273256,25.75,161.72,161.67,4.5771]
[1717783273563,30.74083576,162.12,161.58,1.5]
[1717783273752,12.55349893,162.11,161.58,1.5]
[1717783273954,36.05,161.76,161.59,34.74]
[1717783274191,36.05,161.76,161.73,2.2877]
[1717783274483,36.05,161.76,161.38,0.81759124]
[1717783274686,6.1486,161.75,161.21,34.74]
[1717783274889,6.1486,161.5,161.07,30.66324196]
[1717783275075,34.74,161.36,161.31,2.2936]
[1717783275392,34.74,161.48,161.14,9.1844]
[1717783275564,6.5154,161.4,161.21,6.6802]
[1717783275768,120.0,161.38,161.36,2.2929]
[1717783275957,120.0,161.38,161.03,30.80247285]
[1717783275958,6.70062234,161.43,161.29,34.74]
[1717783276165,6.269,161.7,161.38,34.74]
[1717783276374,59.69454866,161.69,161.47,33.2984]
[1717783276700,36.05,161.69,161.44,4.5834]
[1717783277001,4.04135846,161.68,161.27,15.943]
[1717783277200,36.05,161.69,161.4,4.5848]
[1717783277369,36.05,161.69,161.27,15.943]
[1717783277558,36.05,161.69,161.29,34.74]
[1717783277762,120.0,161.39,161.38,28.4222]
[1717783277968,24.771644,161.68,161.67,2.2886]
[1717783278192,24.771644,161.68,161.38,21.5441]
[1717783278193,36.05,161.69,161.5,34.74]
[1717783278478,36.05,161.69,161.5,10.0]
[1717783278694,36.05,161.69,161.68,2.2884]
[1717783279000,34.74,162.14,161.65,18.65743203]
[1717783279168,34.74,162.14,161.61,34.74]
[1717783279992,34.74,162.14,161.53,6.1396]
[1717783279993,30.71350906,162.12,161.66,54.74]
[1717783280189,30.71350906,162.12,161.66,56.7287]
[1717783280190,120.0,161.93,161.66,56.7287]
[1717783280397,24.730437,162.12,161.76,10.0]
[1717783280715,120.0,161.82,161.69,34.74]
[1717783280862,24.730437,162.12,161.72,34.74]
[1717783280863,53.0,162.01,161.72,34.74]
[1717783281069,24.730437,162.12,161.71,34.74]
[1717783281282,24.730437,162.12,161.76,10.0]
[1717783281586,2.55394004,162.09,161.76,10.0]
[1717783281764,2.55394004,162.09,161.75,6.645]
[1717783281765,24.730437,162.12,161.75,6.645]
[1717783282085,120.0,162.05,161.75,6.645]
[1717783282397,24.730437,162.12,161.94,22.6321]
[1717783282577,0.3370297,162.13,161.95,6.6563]
[1717783282768,0.3370297,162.13,161.96,20.0]
[1717783283065,0.3370297,162.13,161.98,34.74]
[1717783283266,0.3370297,162.13,161.95,5.9137]
[1717783283267,1.6254556,162.2,162.03,10.0]
[1717783283468,1.6254556,162.2,162.11,10.0]
[1717783283661,0.2071,162.2,162.11,44.74]
[1717783283866,0.2071,162.2,162.13,10.0]
[1717783284097,0.2071,162.2,162.19,15.8353]
[1717783284504,0.2071,162.2,162.19,35.8353]
[1717783284667,30.6279736,162.44,162.24,10.0]
[1717783284865,30.19977551,162.45,162.24,10.0]
[1717783285102,30.19977551,162.45,162.34,10.0]
[1717783285285,0.3370297,162.46,162.45,3.91742963]
[1717783285490,0.3370297,162.46,162.45,8.7e-07]
[1717783286184,0.3370297,162.46,162.31,20.0]
[1717783286389,0.3370297,162.46,162.25,24.639954]
[1717783286689,0.3370297,162.46,162.13,6.2703]
[1717783286898,120.0,162.45,162.18,7.50510087]
[1717783287267,120.0,162.45,162.27,7.50510087]
[1717783287478,0.3370297,162.46,162.13,8.765199]
[1717783287690,0.3370297,162.46,162.13,2.494899]
[1717783288004,2.49489913,162.41,161.98,6.4758]
[1717783288303,120.0,162.34,162.05,15.9481]
[1717783288802,120.0,162.29,162.05,15.9481]
[1717783289095,120.0,162.36,162.05,15.9481]
[1717783289278,120.0,162.38,162.05,15.9481]
[1717783289603,120.0,162.32,162.05,15.9481]
[1717783289785,120.0,162.28,162.05,15.9481]
[1717783289970,120.0,162.33,162.05,15.9481]
[1717783290387,120.0,162.33,162.04,7.5051]
[1717783290388,120.0,162.31,162.04,7.5051]
[1717783290588,120.0,162.26,162.04,7.5051]
[1717783290987,120.0,162.26,161.88,15.8062]
[1717783291275,120.0,162.26,161.83,6.016]
[1717783291276,2.49489913,162.22,161.83,6.016]
[1717783291575,2.49489913,162.12,161.83,6.016]
[1717783291882,20.0,162.17,161.83,6.016]
[1717783292080,2.49489913,162.07,161.66,7.50510087]
[1717783292474,2.49489913,162.07,161.61,6.2627]
[1717783292475,2.49489913,162.01,161.61,6.2627]
[1717783292692,2.49489913,161.96,161.61,6.2627]
[1717783292902,120.0,162.07,161.61,6.2627]
[1717783292903,2.49489913,161.87,161.61,6.2627]
[1717783293285,2.49489913,161.83,161.38,1.6254556]
[1717783293480,2.49489913,161.82,161.38,1.6254556]
[1717783293680,2.49489913,161.7,161.38,1.6254556]
[1717783293903,2.49489913,161.62,161.38,1.6254556]
[1717783294105,120.0,161.67,161.38,7.75302915]
[1717783294277,2.2895,161.61,161.38,1.6254556]
[1717783294479,120.0,161.51,161.38,1.6254556]
[1717783294678,2.49489913,161.49,161.38,1.6254556]
[1717783295002,116.61619004,161.69,161.38,1.6254556]
[1717783295303,124.5775,161.66,161.38,1.6254556]
[1717783295613,125.76969004,161.69,161.38,1.6254556]
[1717783295614,120.0,161.45,161.38,1.6254556]
[1717783295783,1.77729913,161.39,161.38,1.6254556]
[1717783295978,4.5793,161.6,161.38,1.6254556]
[1717783295979,1.77729913,161.46,161.38,1.6254556]
[1717783296191,20.0,161.56,161.38,1.6254556]
[1717783296388,1.77729913,161.43,161.38,1.6254556]
[1717783296573,1.77729913,161.39,161.38,1.6254556]
[1717783296787,1.77729913,161.52,161.38,23.5267556]
[1717783297101,10.0,161.67,161.38,23.5267556]
[1717783297102,120.0,161.57,161.38,23.5267556]
[1717783297305,120.0,161.54,161.38,23.5267556]
[1717783297480,53.45704004,161.72,161.38,23.5267556]
[1717783297481,120.0,161.44,161.38,23.5267556]
[1717783297679,120.0,161.57,161.38,1.6254556]
[1717783297874,120.0,161.46,161.39,6.1083]
[1717783298079,1.77729913,161.4,161.39,21.5836]
[1717783298273,120.0,161.59,161.39,21.5836]
[1717783298498,120.0,161.52,161.44,10.0]
[1717783298699,120.0,161.67,161.44,10.0]
[1717783298898,10.0,162.09,161.46,6.6483]
[1717783299210,6.1691,162.44,161.74,16.3434]
[1717783299384,37.02,162.08,161.75,36.10522712]
[1717783299581,37.02,162.08,161.75,25.8461]
[1717783299798,120.0,162.02,161.75,20.0]
[1717783299991,120.0,162.06,161.76,8.05]
[1717783300182,447.3,163.0,161.77,22.615]
[1717783300183,6.8333,162.44,161.77,22.615]
[1717783300383,2.2803,162.26,161.78,7.50522712]
[1717783300606,20.0,162.28,161.91,22.1103]
[1717783300903,6.21262417,162.46,161.9,10.0]
[1717783300904,6.21262417,162.46,161.96,6.0539]
[1717783301083,6.21262417,162.46,161.97,23.051379]
[1717783301283,0.3370297,162.46,161.97,23.051379]
[1717783301610,0.3370297,162.46,162.28,15.9833]
[1717783302303,120.0,162.72,162.29,20.0]
[1717783302507,14.77944004,162.74,162.29,20.0]
[1717783302508,10.0,162.74,162.29,20.0]
[1717783302714,120.0,162.75,162.29,20.0]
[1717783302906,120.0,162.72,162.29,20.0]
[1717783303085,53.0,162.65,162.29,20.0]
[1717783303287,0.3370297,162.79,162.29,20.0]
[1717783304408,0.3370297,162.79,162.33,130.0]
[1717783304791,0.3370297,162.79,162.34,20.0]
[1717783305189,120.0,162.78,162.34,20.0]
[1717783305398,120.0,162.76,162.34,20.0]
[1717783305907,120.0,162.78,162.32,120.0]
[1717783306130,10.3370297,162.79,162.32,120.0]
[1717783306321,53.0,162.66,162.32,130.0]
[1717783306890,2.0141055,162.75,162.32,130.0]
[1717783307104,2.0141055,162.75,162.3,10.0]
[1717783307310,2.0141055,162.75,162.32,10.0]
[1717783307710,120.0,162.74,162.32,10.0]
[1717783308021,2.274,162.71,162.28,15.9833]
[1717783308204,120.0,162.69,162.28,15.9833]
[1717783308396,120.0,162.69,162.38,10.0]
[1717783308592,120.0,162.71,162.52,10.0]
[1717783308812,120.0,162.73,162.54,10.0]
[1717783309011,10.0,162.72,162.29,30.0]
[1717783309215,10.0,162.63,162.28,15.9833]
[1717783309518,10.0,162.67,162.28,15.9833]
[1717783309690,10.0,162.63,162.28,15.9833]
[1717783310025,5.96931483,162.68,162.28,15.9833]
[1717783310394,120.0,162.7,162.28,15.9833]
[1717783311092,120.0,162.77,162.28,15.9833]
[1717783311292,120.0,162.67,162.28,15.9833]
[1717783311512,122.2746,162.67,162.28,15.9833]
[1717783311814,120.0,162.65,162.28,15.9833]
[1717783311992,31.86969004,162.78,162.29,7.83658235]
[1717783312185,2.2745,162.67,162.28,15.9833]
[1717783312425,2.2743,162.69,162.28,15.9833]
[1717783312625,120.0,162.71,162.28,15.9833]
[1717783312922,120.0,162.61,162.28,15.9833]
[1717783313107,43.0,162.44,162.28,15.9833]
[1717783313527,120.0,162.61,162.13,6.6407]
[1717783313736,120.0,162.59,162.13,6.6407]
[1717783314249,6.8241,162.66,161.98,1.42811026]
[1717783314250,139.7585,162.52,161.98,1.42811026]
[1717783314540,120.0,162.42,161.98,1.42811026]
[1717783314710,2.2795,162.32,161.98,1.42811026]
[1717783314914,2.2786,162.38,161.98,1.42811026]
[1717783315120,10.0,162.48,161.96,16.6407]
[1717783315422,5.87447077,162.37,161.96,6.6407]
[1717783315615,5.87447077,162.37,161.97,19.26478078]
[1717783315802,120.0,162.48,162.12,10.0]
[1717783316015,5.87934098,162.42,162.12,10.0]
[1717783316222,120.0,162.5,162.24,10.0]
[1717783316533,43.0,162.26,161.97,1.42819843]
[1717783316707,120.0,162.52,162.05,10.0]
[1717783316913,120.0,162.41,162.06,7.83658235]
[1717783317244,120.0,162.47,162.07,20.0]
[1717783317430,120.0,162.44,162.09,10.0]
[1717783317636,122.2766,162.52,162.1,20.0]
[1717783317803,120.0,162.52,162.1,20.0]
[1717783318004,11.0481,162.65,162.11,6.484]
[1717783318203,120.0,162.58,162.12,20.0]
[1717783318412,120.0,162.55,162.2,10.0]
[1717783318621,120.0,162.57,162.21,20.0]
[1717783318907,120.0,162.62,162.21,20.0]
[1717783319244,120.0,162.6,162.21,20.0]
[1717783319546,8.56319004,162.68,162.23,25.7818]
[1717783319827,6.68669004,162.74,162.35,10.0]
[1717783320030,6.68669004,162.74,162.24,20.0]
[1717783320031,0.3370297,162.79,162.36,20.0]
[1717783320229,0.3370297,162.79,162.24,67.83658235]
[1717783320230,120.0,162.72,162.25,10.0]
[1717783320406,120.0,162.74,162.58,10.0]
[1717783320605,122.6099297,162.79,162.58,10.0]
[1717783320809,122.6098297,162.79,162.59,20.0]
[1717783321032,120.0,162.73,162.56,10.0]
[1717783321242,4.8829297,162.79,162.49,22.8557]
[1717783321410,0.3370297,162.79,162.49,22.8557]
[1717783321611,120.0,162.72,162.49,22.8557]
[1717783322016,2.274,162.71,162.49,22.8557]
[1717783322339,0.3370297,162.79,162.49,22.8557]
[1717783322720,43.0,162.68,162.5,21.00392097]
[1717783323219,0.3370297,162.79,162.5,21.00392097]
[1717783323527,2.2733,162.76,162.51,0.69471054]
[1717783323713,120.0,162.78,162.51,0.69471054]
[1717783324031,120.0,162.78,162.49,22.8557]
[1717783324915,120.0,162.78,161.95,102.85334334]
[1717783324916,130.0,162.76,162.36,6.0958]
[1717783325133,129.0965,162.7,162.34,15.5056]
[1717783325340,14.5494,162.66,162.22,6.5009]
[1717783325632,9.0975,162.69,162.18,1.49840098]
[1717783325633,2.277,162.49,162.18,1.49840098]
[1717783325832,130.0,162.56,162.11,7.08980566]
[1717783326037,120.0,162.51,162.07,16.5009]
[1717783326218,43.0,162.28,162.07,16.5009]
[1717783326414,43.0,162.28,162.08,1.53096056]
[1717783326617,43.0,162.28,162.07,10.0]
[1717783326922,2.2801,162.27,162.0,15.9561]
[1717783327122,20.0,162.27,162.0,15.9561]
[1717783327321,120.0,162.3,162.0,15.9561]
[1717783327629,120.0,162.37,162.0,15.9561]
[1717783327813,120.0,162.34,162.05,10.0]
[1717783328013,120.0,162.5,162.06,6.1041]
[1717783328322,120.0,162.52,162.08,16.0521]
[1717783328659,30.10685237,162.69,162.25,6.3026]
[1717783328660,120.0,162.49,162.25,6.3026]
[1717783328944,9.097,162.69,162.25,6.3026]
[1717783328945,120.0,162.66,162.27,16.1664]
[1717783329250,120.0,162.64,162.28,20.0]
[1717783329810,120.0,162.69,162.29,30.0]
[1717783330124,120.0,162.74,162.41,10.0]
[1717783330331,120.0,162.78,162.43,15.0925]
[1717783330641,120.0,162.78,162.57,10.0]
[1717783330941,120.0,162.78,162.43,15.0925]
[1717783330942,0.89515993,162.77,162.59,10.0]
[1717783331125,120.89515993,162.77,162.6,20.0]
[1717783331310,0.89515993,162.77,162.57,6.5924]
[1717783331517,0.89515993,162.77,162.58,20.0]
[1717783332017,0.89515993,162.77,162.57,6.5924]
[1717783332218,0.89515993,162.77,162.58,20.0]
[1717783333226,0.89515993,162.77,162.58,21.18461037]
[1717783333431,0.89515993,162.77,162.59,1.1845375]
[1717783333621,0.3370297,162.79,162.6,15.7345]
[1717783333947,0.3370297,162.79,162.61,21.1862124]
[1717783334320,0.3370297,162.79,162.64,9.35852438]
[1717783334643,1.6254556,162.86,162.65,21.18592067]
[1717783334941,1.6254556,162.86,162.65,20.0]
[1717783335183,2.49703014,162.91,162.61,1.18625394]
[1717783335184,0.03832914,162.91,162.66,1.18588929]
[1717783335444,0.03832914,162.91,162.69,9.35852438]
[1717783335653,0.64147562,163.01,162.71,9.35852438]
[1717783335821,0.64147562,163.05,162.78,9.35852438]
[1717783336022,2.49703,163.03,162.8,16.0385]
[1717783336243,2.49703,163.03,162.82,6.3808]
[1717783336451,0.64147562,163.11,162.87,9.35852438]
[1717783336749,1.6254556,163.19,162.9,9.35852438]
[1717783336750,0.97850532,163.13,162.9,9.35852438]
[1717783336948,0.97850532,163.13,162.92,9.35852438]
[1717783337258,0.3370297,163.13,162.93,20.0]
[1717783337547,0.64147562,163.01,162.93,20.0]
[1717783337753,0.3370297,163.13,162.89,9.35852438]
[1717783337923,0.3370297,163.13,162.9,20.0]
[1717783339438,1.6254556,163.19,162.9,20.0]
[1717783339828,1.6254556,163.19,162.9,38.57]
[1717783340050,1.6254556,163.19,162.92,16.16495466]
[1717783340241,1.6254556,163.19,162.94,55.59]
[1717783340556,170.55217904,163.37,162.96,47.02]
[1717783340733,170.55217904,163.37,162.97,30.0]
[1717783340933,2.2658,163.3,162.98,1.41934778]
[1717783341132,130.0,163.34,162.98,1.41934778]
[1717783341336,143.58962789,163.34,162.98,1.41934778]
[1717783341529,10.0,163.33,162.98,1.41934778]
[1717783341756,120.0,163.32,162.98,1.41934778]
[1717783341954,2.2658,163.3,162.98,1.41934778]
[1717783342254,120.0,163.34,162.98,1.41934778]
[1717783342832,2.266,163.28,162.98,1.41934778]
[1717783343126,2.2668,163.22,162.98,1.41934778]
[1717783343346,120.0,163.27,162.98,1.41934778]
[1717783343669,2.2662,163.27,162.98,1.41934778]
[1717783343964,24.36912571,163.32,162.98,1.41934778]
[1717783344133,120.03821362,163.4,162.98,1.41934778]
[1717783344333,20.66169004,163.37,162.98,1.41934778]
[1717783344540,0.03821362,163.4,162.99,59.3714]
[1717783344733,0.03821362,163.4,163.11,10.0]
[1717783344933,0.03821362,163.4,163.12,26.459]
[1717783345462,2.265,163.36,163.12,26.459]
[1717783345667,2.2658,163.3,163.0,1.41917362]
[1717783345839,2.2668,163.23,163.0,1.41917362]
[1717783346177,4.5316,163.3,162.99,22.3339]
[1717783346358,2.2664,163.25,162.99,22.3339]
[1717783346536,22.97242957,163.3,162.99,22.3339]
[1717783346853,10.0,163.34,162.99,23.75316069]
[1717783347047,120.0,163.33,162.99,33.75316069]
[1717783347255,33.55828323,163.34,162.99,23.75316069]
[1717783347256,2.2666,163.24,162.99,23.75316069]
[1717783347572,120.0,163.26,162.99,22.3339]
[1717783347736,120.0,163.24,162.99,22.29533773]
[1717783348054,4.5331,163.25,162.99,22.29533773]
[1717783348055,122.2672,163.2,162.99,22.29533773]
[1717783348359,120.0,163.17,162.99,22.29533773]
[1717783348566,4.5359,163.15,162.87,6.1496]
[1717783348735,42.90092178,163.16,162.87,6.1496]
[1717783349050,22.90092178,163.16,162.87,7.56990638]
[1717783349261,22.90092178,163.16,162.9,47.02]
[1717783349448,30.20584947,163.34,162.91,1.22754376]
[1717783349765,30.20584947,163.34,162.92,2.64728672]
[1717783350059,10.0,163.48,162.92,2.64728672]
[1717783350060,13.584,163.43,162.95,37.02]
[1717783350233,2.2649,163.37,162.97,37.02]
[1717783350432,2.2646,163.39,163.04,37.02]
[1717783350658,22.90092178,163.37,163.07,16.464]
[1717783350961,5.99093262,163.4,163.08,38.24692087]
[1717783351136,5.99093262,163.4,163.11,43.3732]
[1717783351343,5.99093262,163.4,163.12,58.24662]
[1717783351536,0.03821362,163.4,163.12,58.24662]
[1717783351946,0.03821362,163.4,163.13,2.32754174]
[1717783352136,0.03821362,163.4,163.14,1.41795575]
[1717783352339,0.03821362,163.4,163.15,0.90938757]
[1717783352536,0.03821362,163.4,163.16,1.41778193]
[1717783352745,0.03821362,163.4,163.17,1.17220372]
[1717783352938,0.3370297,163.46,163.27,16.1137]
[1717783353166,0.3370297,163.46,163.29,6.228]
[1717783353372,0.3370297,163.46,163.3,1.17175011]
[1717783353554,0.3370297,163.46,163.3,21.17175011]
[1717783354240,0.3370297,163.46,163.29,6.228]
[1717783355135,120.3370297,163.46,163.27,16.1137]
[1717783355336,0.3370297,163.46,163.27,16.1137]
[1717783355538,120.0,163.44,163.17,6.6341]
[1717783355762,120.0,163.42,163.17,6.6341]
[1717783355958,20.0,163.43,163.17,6.6341]
[1717783355959,2.2655,163.32,163.17,6.6341]
[1717783356141,6.7956,163.34,163.17,6.6341]
[1717783356350,27.80878272,163.32,163.17,6.6341]
[1717783356673,35.46141823,163.43,163.17,6.6341]
[1717783356975,20.0,163.42,163.17,6.6341]
[1717783357153,2.2663,163.26,163.13,15.3009]
[1717783357471,2.267,163.21,163.06,6.4812]
[1717783357773,10.0,163.34,163.06,6.4812]
[1717783357774,20.0,163.26,163.07,1.29631392]
[1717783357945,20.0,163.26,163.08,1.29623443]
[1717783358277,149.0601,163.36,163.06,7.77759341]
[1717783358446,120.0,163.36,163.06,6.4812]
[1717783358772,20.0,163.35,162.99,16.15]
[1717783358984,120.0,163.16,162.99,16.15]
[1717783359267,9.0725,163.13,162.85,15.28]
[1717783359465,120.0,163.14,162.81,6.1324]
[1717783359466,2.2701,162.99,162.81,6.1324]
[1717783359647,20.0,163.04,162.81,6.1324]
[1717783359844,6.8089,163.02,162.72,16.5313]
[1717783360075,9.0781,163.03,162.72,16.5313]
[1717783360076,23.28465439,163.03,162.72,16.5313]
[1717783360287,23.28465439,163.02,162.72,16.5313]
[1717783360460,20.0,163.01,162.72,17.95291566]
[1717783360772,2.2688,163.08,162.72,17.95291566]
[1717783360938,4.5356,163.16,162.95,2.2706]
[1717783361143,2.2686,163.1,162.74,18.57]
[1717783361363,124.5356,163.16,162.74,18.57]
[1717783361364,2.2687,163.09,162.75,1.42135361]
[1717783361576,120.0,163.12,162.75,1.42135361]
[1717783361888,120.0,162.97,162.69,6.3358]
[1717783362051,120.0,162.95,162.61,10.0]
[1717783362256,2.2736,162.74,162.6,16.3702]
[1717783362561,120.0,162.8,162.6,16.3702]
[1717783362783,140.0,162.79,162.6,16.3702]
[1717783362943,20.0,162.79,162.55,6.1183]
[1717783363140,120.0,162.85,162.48,15.188]
[1717783363141,20.0,162.8,162.5,2.2768]
[1717783363446,20.0,162.8,162.42,6.0484]
[1717783363447,9.0927,162.77,162.42,16.3702]
[1717783363752,4.5504,162.62,162.28,6.551]
[1717783363953,6.8256,162.63,162.36,3.9042556]
[1717783364154,23.79773607,162.61,162.36,1.6254556]
[1717783364350,120.0,162.59,162.36,1.6254556]
[1717783364671,4.5537,162.51,162.36,1.6254556]
[1717783364977,2.2787,162.38,162.36,1.6254556]
[1717783365271,22.9273,162.37,161.98,15.2078]
[1717783365571,46.86549872,162.37,161.96,0.3370297]
[1717783365865,20.0,162.36,162.1,5e-07]
[1717783366078,2.2824,162.11,162.1,5e-07]
[1717783366254,4.5625,162.19,162.1,5e-07]
[1717783366448,26.22059872,162.11,162.1,5e-07]
[1717783366643,30.09569872,162.11,161.96,0.3370297]
[1717783366842,2.2843,161.97,161.96,0.3370297]
[1717783367040,2.2843,161.97,161.77,2.2871]
[1717783367259,2.2849,161.94,161.77,2.2871]
[1717783367462,2.2849,161.94,161.7,4.5762]
[1717783367463,4.5686,161.98,161.61,0.03848383]
[1717783367668,43.0,161.91,161.61,0.03848383]
[1717783367877,4.572,161.86,161.61,0.03848383]
[1717783368048,9.1435,161.87,161.61,0.03848383]
[1717783368240,20.0,161.9,161.61,0.03848383]
[1717783368241,2.2887,161.67,161.61,0.03848383]
[1717783368441,9.1504,161.75,161.61,0.03848383]
[1717783368705,61.12719906,161.9,161.61,0.03848383]
[1717783368706,24.2228,161.62,161.61,0.03848383]
[1717783368848,2.2908,161.52,161.38,1.6254556]
[1717783369045,4.5784,161.63,161.38,1.6254556]
[1717783369046,9.1576,161.62,161.38,1.6254556]
[1717783369243,24.41678968,161.74,161.38,1.6254556]
[1717783369447,2.2925,161.4,161.38,1.6254556]
[1717783369658,6.2262,161.39,161.38,0.6254556]
[1717783369866,2.2925,161.39,161.38,0.6254556]
[1717783370043,25.3877,161.39,161.38,5.56e-05]
[1717783370253,9.1715,161.37,161.12,5.05194951]
[1717783370454,2.2948,161.24,161.12,0.03860087]
[1717783370680,54.43700082,161.39,161.12,0.03860087]
[1717783370844,6.8818,161.3,161.12,0.03860087]
[1717783371046,20.0,161.29,161.12,0.03860087]
[1717783371276,42.0,161.15,161.12,0.03860087]
[1717783372155,4.5893,161.25,161.12,0.03860087]
[1717783372156,20.0,161.29,161.12,0.03860087]
[1717783372347,4.5878,161.3,161.12,0.03860087]
[1717783372348,2.2946,161.25,161.12,0.03860087]
[1717783372548,15.76319004,161.26,161.12,2.33490087]
[1717783372749,4.5864,161.35,161.12,0.03860087]
[1717783372958,120.0,161.44,161.12,0.03860087]
[1717783373168,4.5833,161.46,161.2,15.7421]
[1717783373375,2.2922,161.42,161.25,2.2945]
[1717783373550,3.22869004,161.47,161.25,8.05]
[1717783373748,2.2916,161.46,161.3,2.2937]
[1717783373950,6.8694,161.59,161.3,2.2937]
[1717783373951,31.08982541,161.59,161.3,5.69430988]
[1717783374245,30.70391452,161.68,161.43,4.5837]
[1717783374554,4.5684,161.99,161.57,11.4498]